[Event "Lithuanian Chess League 2021"]
[Site "Various cities"]
[Date "2021.05.08"]
[Round "2.9"]
[White "Eigminas, Kipras"]
[Black "Solys, Laimutis"]
[Result "1-0"]
[WhiteElo "2095"]
[BlackElo "2319"]
[PlyCount "65"]
[TimeControl "90/40+30:0"]
[WhiteClock "0:31:36"]
[BlackClock "0:01:27"]

1. e4 {[%emt 0:00:00]} c5 {[%emt 0:00:50]} 2. Nf3 {[%emt 0:00:07]} Nc6 {[%emt
0:00:14]} 3. d4 {[%emt 0:00:05]} cxd4 {[%emt 0:00:07]} 4. Nxd4 {[%emt 0:00:04]}
Nf6 {[%emt 0:00:10]} 5. Nc3 {[%emt 0:00:06]} d6 {[%emt 0:00:06]} 6. Be3 {[%emt
0:05:27]} Ng4 {[%emt 0:01:03]} 7. Bc1 {[%emt 0:08:00]} Qb6 {[%emt 0:03:12]} 8.
Bb5 {[%emt 0:00:08]} Bd7 {[%emt 0:12:35]} 9. O-O {[%emt 0:00:23]} Nge5 {[%emt
0:28:42]} 10. Be3 {[%emt 0:06:59]} Qd8 {[%emt 0:00:16]} 11. Be2 {[%emt 0:05:22]
} Nxd4 {[%emt 0:06:39]} 12. Bxd4 {[%emt 0:02:10]} Nc6 {[%emt 0:00:10]} 13. Be3
{[%emt 0:00:06]} g6 {[%emt 0:00:33]} 14. Nd5 {[%emt 0:00:15]} Bg7 {[%emt 0:00:
23]} 15. c4 {[%emt 0:02:31]} O-O {[%emt 0:01:29]} 16. Qd2 {[%emt 0:00:29]} Rc8
{[%emt 0:07:21]} 17. Rac1 {[%emt 0:01:03]} b6 {[%emt 0:06:39]} 18. h3 {[%emt 0:
03:40]} Be6 {[%emt 0:04:05]} 19. b4 {[%emt 0:04:15]} Qd7 {[%emt 0:06:02]} 20.
a4 {[%emt 0:01:23]} f5 {[%emt 0:02:45]} 21. a5 {[%emt 0:03:59]} bxa5 {[%emt 0:
01:14]} 22. exf5 {[%emt 0:02:24]} Bxf5 {[%emt 0:00:47]} 23. bxa5 {[%emt 0:02:
16]} Rb8 {[%emt 0:02:29]} 24. c5 {[%emt 0:09:08]} Rb2 {[%emt 0:04:40]} 25. Qd1
{[%emt 0:00:15]} Kh8 {[%emt 0:00:15]} 26. a6 {[%emt 0:07:09]} dxc5 {[%emt 0:04:
01]} 27. Rxc5 {[%emt 0:00:52]} Rfb8 {[%emt 0:02:13]} 28. Bg4 {[%emt 0:03:20]}
e5 {[%emt 0:01:36]} 29. Qa4 {[%emt 0:00:50]} Rc8 {[%emt 0:02:55]} 30. Rfc1 {
[%emt 0:00:52]} h5 {[%emt 0:00:26]} 31. Bxf5 {[%emt 0:01:11]} gxf5 {[%emt 0:00:
43]} 32. Rxc6 {[%emt 0:00:30]} Rxc6 {[%emt 0:00:18]} 33. Qxc6 {[%emt 0:00:07]}
1-0

[Event "Lithuanian Chess League 2021"]
[Site "Various cities"]
[Date "2021.05.08"]
[Round "2.10"]
[White "Morkunas, Gustas"]
[Black "Paulauskas, Andrius"]
[Result "1/2-1/2"]
[WhiteElo "1722"]
[BlackElo "1906"]
[PlyCount "57"]
[TimeControl "90/40+30:0"]
[WhiteClock "0:06:33"]
[BlackClock "0:19:43"]

1. e4 {[%emt 0:00:04]} e6 {[%emt 0:00:04]} 2. d4 {[%emt 0:00:13]} d5 {[%emt 0:
00:05]} 3. Nc3 {[%emt 0:00:12]} Nf6 {[%emt 0:00:05]} 4. e5 {[%emt 0:00:27]}
Nfd7 {[%emt 0:00:05]} 5. f4 {[%emt 0:00:22]} c5 {[%emt 0:00:45]} 6. Nf3 {[%emt
0:00:15]} Nc6 {[%emt 0:00:09]} 7. Be3 {[%emt 0:00:29]} Qb6 {[%emt 0:01:19]} 8.
Na4 {[%emt 0:02:01]} Qa5+ {[%emt 0:00:11]} 9. c3 {[%emt 0:00:26]} cxd4 {[%emt
0:22:57]} 10. b4 {[%emt 0:04:08]} Nxb4 {[%emt 0:02:10]} 11. cxb4 {[%emt 0:02:
47]} Bxb4+ {[%emt 0:00:05]} 12. Bd2 {[%emt 0:01:47]} Bxd2+ {[%emt 0:00:14]} 13.
Nxd2 {[%emt 0:00:16]} b6 {[%emt 0:00:04]} 14. Bd3 {[%emt 0:18:09]} Nc5 {[%emt
0:01:38]} 15. Nxc5 {[%emt 0:03:53]} bxc5 {[%emt 0:00:11]} 16. O-O {[%emt 0:01:
43]} Bd7 {[%emt 0:15:15]} 17. Rc1 {[%emt 0:19:52]} Rc8 {[%emt 0:10:58]} 18. Rf2
{[%emt 0:07:34]} Qd8 {[%emt 0:09:39]} 19. Qg4 {[%emt 0:10:41]} g6 {[%emt 0:02:
39]} 20. Nf3 {[%emt 0:08:28]} c4 {[%emt 0:00:50]} 21. Bf1 {[%emt 0:00:18]} d3 {
[%emt 0:01:34]} 22. Qg3 {[%emt 0:08:19]} Qb6 {[%emt 0:04:18]} 23. Qg5 {[%emt 0:
01:12]} h6 {[%emt 0:01:51]} 24. Qf6 {[%emt 0:01:17]} Rg8 {[%emt 0:00:15]} 25.
f5 {[%emt 0:00:46]} gxf5 {[%emt 0:05:12]} 26. Qxh6 {[%emt 0:00:20]} Qc5 {[%emt
0:01:33]} 27. Bxd3 {[%emt 0:01:29]} Qf8 {[%emt 0:00:41]} 28. Qxf8+ {[%emt 0:00:
21]} Kxf8 {[%emt 0:00:07]} 29. Be2 {[%emt 0:02:01]} 1/2-1/2

[Event "Lithuanian Chess League 2021"]
[Site "Various cities"]
[Date "2021.05.08"]
[Round "2.11"]
[White "Klimciauskas, Domantas"]
[Black "Stremavicius, Titas"]
[Result "0-1"]
[WhiteElo "2175"]
[BlackElo "2484"]
[PlyCount "59"]
[TimeControl "90/40+30:0"]
[WhiteClock "0:00:33"]
[BlackClock "0:13:25"]

1. d4 {[%emt 0:00:01]} f5 {[%emt 0:00:39]} 2. g3 {[%emt 0:03:56]} Nf6 {[%emt 0:
00:15]} 3. Bg2 {[%emt 0:00:18]} g6 {[%emt 0:01:15]} 4. Nh3 {[%emt 0:03:05]} d6
{[%emt 0:07:32]} 5. b3 {[%emt 0:06:06]} Bg7 {[%emt 0:01:42]} 6. Bb2 {[%emt 0:
00:32]} e6 {[%emt 0:03:11]} 7. O-O {[%emt 0:05:41]} O-O {[%emt 0:04:10]} 8. Nd2
{[%emt 0:06:09]} Nc6 {[%emt 0:02:44]} 9. Nf4 {[%emt 0:17:42]} Nxd4 {[%emt 0:19:
43]} 10. Bxd4 {[%emt 0:00:23]} e5 {[%emt 0:00:05]} 11. Bb2 {[%emt 0:01:12]}
exf4 {[%emt 0:00:07]} 12. gxf4 {[%emt 0:00:05]} Rb8 {[%emt 0:05:02]} 13. e3 {
[%emt 0:08:41]} Bd7 {[%emt 0:01:22]} 14. Qe2 {[%emt 0:21:47]} Kh8 {[%emt 0:02:
09]} 15. Rfd1 {[%emt 0:09:35]} Qe7 {[%emt 0:01:05]} 16. Qc4 {[%emt 0:01:23]}
Be6 {[%emt 0:01:04]} 17. Qd3 {[%emt 0:00:24]} Bd7 {[%emt 0:07:00]} 18. Rac1 {
[%emt 0:02:11]} Bc6 {[%emt 0:01:08]} 19. Bxc6 {[%emt 0:01:16]} bxc6 {[%emt 0:
00:02]} 20. Qa6 {[%emt 0:01:47]} c5 {[%emt 0:02:29]} 21. a4 {[%emt 0:02:59]}
Ng4 {[%emt 0:17:24]} 22. Bxg7+ {[%emt 0:00:21]} Qxg7 {[%emt 0:00:02]} 23. h3 {
[%emt 0:02:16]} Nf6 {[%emt 0:00:33]} 24. Qc6 {[%emt 0:01:38]} g5 {[%emt 0:03:
05]} 25. fxg5 {[%emt 0:01:25]} Qxg5+ {[%emt 0:00:02]} 26. Kh1 {[%emt 0:01:56]}
Qh4 {[%emt 0:02:58]} 27. Qf3 {[%emt 0:00:19]} Ne4 {[%emt 0:01:05]} 28. Nxe4 {
[%emt 0:00:52]} fxe4 {[%emt 0:00:02]} 29. Qg3 {[%emt 0:00:33]} Qh5 {[%emt 0:03:
32]} 30. Rg1 {[%emt 0:00:36]} 0-1

[Event "Lithuanian Chess League 2021"]
[Site "Various cities"]
[Date "2021.05.08"]
[Round "2.12"]
[White "Juksta, Karolis"]
[Black "Vanagas, Tadas"]
[Result "1-0"]
[WhiteElo "2437"]
[BlackElo "2154"]
[PlyCount "91"]
[TimeControl "90/40+30:0"]
[WhiteClock "0:32:54"]
[BlackClock "0:27:43"]

1. d4 {[%emt 0:00:03]} Nf6 {[%emt 0:00:06]} 2. c4 {[%emt 0:00:08]} g6 {[%emt 0:
00:10]} 3. Nc3 {[%emt 0:03:01]} d5 {[%emt 0:00:04]} 4. cxd5 {[%emt 0:00:48]}
Nxd5 {[%emt 0:00:04]} 5. e4 {[%emt 0:00:05]} Nxc3 {[%emt 0:00:04]} 6. bxc3 {
[%emt 0:00:04]} Bg7 {[%emt 0:00:05]} 7. Nf3 {[%emt 0:00:05]} c5 {[%emt 0:01:09]
} 8. Be3 {[%emt 0:00:12]} O-O {[%emt 0:00:14]} 9. Be2 {[%emt 0:00:43]} Nc6 {
[%emt 0:01:24]} 10. O-O {[%emt 0:00:17]} cxd4 {[%emt 0:04:01]} 11. cxd4 {[%emt
0:00:11]} Bg4 {[%emt 0:00:11]} 12. d5 {[%emt 0:00:20]} Na5 {[%emt 0:16:40]} 13.
Rc1 {[%emt 0:02:54]} Qd7 {[%emt 0:03:36]} 14. h3 {[%emt 0:08:35]} Bh5 {[%emt 0:
01:16]} 15. Qd2 {[%emt 0:14:32]} b6 {[%emt 0:01:33]} 16. g4 {[%emt 0:04:16]}
Bxg4 {[%emt 0:00:05]} 17. hxg4 {[%emt 0:00:09]} Qxg4+ {[%emt 0:00:04]} 18. Kh1
{[%emt 0:02:34]} Qxe4 {[%emt 0:01:08]} 19. Qd3 {[%emt 0:08:28]} Qa4 {[%emt 0:
01:15]} 20. Rc7 {[%emt 0:09:21]} Bf6 {[%emt 0:17:06]} 21. Bd4 {[%emt 0:07:47]}
Rad8 {[%emt 0:12:52]} 22. Bxf6 {[%emt 0:02:00]} exf6 {[%emt 0:00:04]} 23. a3 {
[%emt 0:05:35]} Rd6 {[%emt 0:02:53]} 24. Rb1 {[%emt 0:02:29]} Qg4 {[%emt 0:02:
08]} 25. Rb4 {[%emt 0:01:41]} Qh5+ {[%emt 0:03:33]} 26. Rh4 {[%emt 0:05:38]}
Qxd5 {[%emt 0:00:21]} 27. Qxd5 {[%emt 0:02:46]} Rxd5 {[%emt 0:00:01]} 28. Re4 {
[%emt 0:02:39]} Kg7 {[%emt 0:04:34]} 29. Ree7 {[%emt 0:03:54]} g5 {[%emt 0:02:
27]} 30. a4 {[%emt 0:01:40]} g4 {[%emt 0:03:03]} 31. Ng1 {[%emt 0:01:45]} h5 {
[%emt 0:00:29]} 32. Bb5 {[%emt 0:00:20]} Rf5 {[%emt 0:06:00]} 33. Kg2 {[%emt 0:
02:08]} h4 {[%emt 0:01:29]} 34. Be8 {[%emt 0:01:53]} h3+ {[%emt 0:05:48]} 35.
Kg3 {[%emt 0:00:34]} h2 {[%emt 0:00:08]} 36. Kxh2 {[%emt 0:01:38]} Rxf2+ {
[%emt 0:00:04]} 37. Kg3 {[%emt 0:00:05]} Rf1 {[%emt 0:00:08]} 38. Ne2 {[%emt 0:
00:44]} f5 {[%emt 0:04:31]} 39. Nd4 {[%emt 0:02:48]} Kf6 {[%emt 0:06:55]} 40.
Bxf7 {[%emt 0:00:57]} Rg1+ {[%emt 0:01:57]} 41. Kf2 {[%emt 0:00:56]} Rh1 {
[%emt 0:05:23]} 42. Re6+ {[%emt 0:00:56]} Kg7 {[%emt 0:00:14]} 43. Bh5+ {[%emt
0:02:12]} Kg8 {[%emt 0:00:03]} 44. Rg6+ {[%emt 0:00:09]} Kh8 {[%emt 0:00:03]}
45. Rh6+ {[%emt 0:00:14]} Kg8 {[%emt 0:00:00]} 46. Ne6 {[%emt 0:00:44]} 1-0

[Event "Lithuanian Chess League 2021"]
[Site "Various cities"]
[Date "2021.05.08"]
[Round "2.13"]
[White "Juknis, Paulius"]
[Black "Stremavicius, Pijus"]
[Result "1-0"]
[WhiteElo "2143"]
[BlackElo "2214"]
[PlyCount "77"]
[TimeControl "90/40+30:0"]
[WhiteClock "0:01:46"]
[BlackClock "0:17:31"]

1. e4 {[%emt 0:00:04]} c5 {[%emt 0:00:11]} 2. Nc3 {[%emt 0:00:34]} Nc6 {[%emt
0:00:48]} 3. Bb5 {[%emt 0:00:17]} Nd4 {[%emt 0:01:09]} 4. Nf3 {[%emt 0:00:35]}
Nxb5 {[%emt 0:00:14]} 5. Nxb5 {[%emt 0:00:06]} a6 {[%emt 0:00:05]} 6. Nc3 {
[%emt 0:00:05]} e6 {[%emt 0:00:24]} 7. d4 {[%emt 0:00:18]} cxd4 {[%emt 0:00:09]
} 8. Qxd4 {[%emt 0:00:08]} b5 {[%emt 0:00:18]} 9. Bf4 {[%emt 0:11:34]} Bb7 {
[%emt 0:00:54]} 10. O-O-O {[%emt 0:11:45]} Nf6 {[%emt 0:00:58]} 11. Rhe1 {
[%emt 0:05:05]} Be7 {[%emt 0:00:35]} 12. Bd6 {[%emt 0:01:51]} O-O {[%emt 0:02:
37]} 13. Ne5 {[%emt 0:08:23]} Bxd6 {[%emt 0:17:51]} 14. Qxd6 {[%emt 0:00:07]}
Rc8 {[%emt 0:03:20]} 15. f3 {[%emt 0:05:08]} Rc7 {[%emt 0:04:17]} 16. Kb1 {
[%emt 0:03:54]} Ne8 {[%emt 0:00:56]} 17. Qd4 {[%emt 0:02:16]} d6 {[%emt 0:00:
16]} 18. Ng4 {[%emt 0:01:36]} h5 {[%emt 0:04:05]} 19. Ne3 {[%emt 0:01:19]} Rd7
{[%emt 0:00:10]} 20. h3 {[%emt 0:15:01]} h4 {[%emt 0:03:52]} 21. Ng4 {[%emt 0:
04:56]} Bc6 {[%emt 0:00:13]} 22. Rd2 {[%emt 0:04:45]} a5 {[%emt 0:11:39]} 23.
Red1 {[%emt 0:01:40]} b4 {[%emt 0:01:01]} 24. Ne2 {[%emt 0:00:06]} e5 {[%emt 0:
01:04]} 25. Qc4 {[%emt 0:04:15]} Qb6 {[%emt 0:01:01]} 26. Nc1 {[%emt 0:02:18]}
Rc7 {[%emt 0:12:07]} 27. Qe2 {[%emt 0:00:37]} g6 {[%emt 0:01:45]} 28. Qe1 {
[%emt 0:02:35]} f5 {[%emt 0:04:12]} 29. exf5 {[%emt 0:01:51]} gxf5 {[%emt 0:00:
08]} 30. Ne3 {[%emt 0:00:37]} Rg7 {[%emt 0:03:16]} 31. Nc4 {[%emt 0:01:23]} Qc5
{[%emt 0:02:18]} 32. b3 {[%emt 0:04:21]} e4 {[%emt 0:02:45]} 33. f4 {[%emt 0:
03:51]} d5 {[%emt 0:03:28]} 34. Ne5 {[%emt 0:01:21]} Nf6 {[%emt 0:00:09]} 35.
Ne2 {[%emt 0:01:48]} Bb5 {[%emt 0:00:12]} 36. Nd4 {[%emt 0:00:16]} Bd7 {[%emt
0:02:50]} 37. Nxd7 {[%emt 0:00:29]} Nxd7 {[%emt 0:00:26]} 38. Ne6 {[%emt 0:00:
12]} Qc3 {[%emt 0:00:30]} 39. Rxd5 {[%emt 0:00:32]} 1-0

[Event "Lithuanian Chess League 2021"]
[Site "Various cities"]
[Date "2021.05.08"]
[Round "2.14"]
[White "Vaznonis, Vytautas"]
[Black "Valantiejus, Vaidotas"]
[Result "1-0"]
[WhiteElo "2382"]
[BlackElo "2117"]
[PlyCount "151"]
[TimeControl "90/40+30:0"]
[WhiteClock "0:09:35"]
[BlackClock "0:05:55"]

1. d4 {[%emt 0:00:03]} d5 {[%emt 0:00:14]} 2. c4 {[%emt 0:00:09]} e6 {[%emt 0:
00:13]} 3. Nc3 {[%emt 0:00:07]} c5 {[%emt 0:00:16]} 4. cxd5 {[%emt 0:00:56]}
exd5 {[%emt 0:00:03]} 5. Nf3 {[%emt 0:00:06]} Nc6 {[%emt 0:00:11]} 6. g3 {
[%emt 0:01:53]} Nf6 {[%emt 0:00:09]} 7. Bg2 {[%emt 0:00:12]} Be7 {[%emt 0:00:
20]} 8. O-O {[%emt 0:00:09]} O-O {[%emt 0:00:07]} 9. Bg5 {[%emt 0:06:00]} c4 {
[%emt 0:00:22]} 10. Ne5 {[%emt 0:11:06]} Be6 {[%emt 0:01:38]} 11. b3 {[%emt 0:
14:12]} h6 {[%emt 0:00:34]} 12. Nxc6 {[%emt 0:05:02]} bxc6 {[%emt 0:00:04]} 13.
Bf4 {[%emt 0:01:05]} cxb3 {[%emt 0:01:36]} 14. axb3 {[%emt 0:01:14]} Bd6 {
[%emt 0:02:30]} 15. Bxd6 {[%emt 0:03:03]} Qxd6 {[%emt 0:00:59]} 16. Qd3 {[%emt
0:19:21]} Rfb8 {[%emt 0:02:26]} 17. Na4 {[%emt 0:00:31]} Nd7 {[%emt 0:02:34]}
18. Rfc1 {[%emt 0:01:57]} Rb5 {[%emt 0:02:35]} 19. Rc3 {[%emt 0:01:01]} Rab8 {
[%emt 0:04:10]} 20. Qc2 {[%emt 0:04:13]} Qb4 {[%emt 0:04:03]} 21. e3 {[%emt 0:
00:20]} g6 {[%emt 0:01:57]} 22. Bf1 {[%emt 0:05:30]} Bf5 {[%emt 0:02:42]} 23.
Qc1 {[%emt 0:01:31]} Ra5 {[%emt 0:01:19]} 24. f3 {[%emt 0:02:33]} Rc8 {[%emt 0:
09:35]} 25. Qe1 {[%emt 0:07:16]} Rb8 {[%emt 0:06:02]} 26. Kf2 {[%emt 0:00:58]}
Kg7 {[%emt 0:01:09]} 27. Be2 {[%emt 0:01:30]} Be6 {[%emt 0:19:13]} 28. Rac1 {
[%emt 0:02:34]} Rb7 {[%emt 0:11:35]} 29. Bd1 {[%emt 0:00:55]} Nb8 {[%emt 0:00:
27]} 30. h4 {[%emt 0:00:53]} Bc8 {[%emt 0:01:25]} 31. Rc5 {[%emt 0:05:50]}
Qxe1+ {[%emt 0:01:26]} 32. Kxe1 {[%emt 0:00:02]} Rxc5 {[%emt 0:01:33]} 33. Nxc5
{[%emt 0:00:01]} Re7 {[%emt 0:00:23]} 34. Kd2 {[%emt 0:00:05]} f6 {[%emt 0:05:
54]} 35. Ra1 {[%emt 0:00:42]} g5 {[%emt 0:02:14]} 36. hxg5 {[%emt 0:00:11]}
fxg5 {[%emt 0:02:41]} 37. g4 {[%emt 0:00:13]} Rf7 {[%emt 0:01:45]} 38. Ke2 {
[%emt 0:02:34]} Kg6 {[%emt 0:01:49]} 39. Bc2+ {[%emt 0:00:27]} Kg7 {[%emt 0:00:
06]} 40. b4 {[%emt 0:01:14]} Re7 {[%emt 0:01:46]} 41. Bb3 {[%emt 0:01:14]} Kg6
{[%emt 0:02:29]} 42. Ra5 {[%emt 0:03:47]} a6 {[%emt 0:02:17]} 43. Bc2+ {[%emt
0:01:05]} Kf6 {[%emt 0:00:47]} 44. Bd3 {[%emt 0:02:50]} Ra7 {[%emt 0:00:51]}
45. Kf2 {[%emt 0:01:10]} Kg7 {[%emt 0:01:54]} 46. Ra3 {[%emt 0:02:16]} Re7 {
[%emt 0:01:27]} 47. Ra5 {[%emt 0:02:12]} Ra7 {[%emt 0:00:09]} 48. Be2 {[%emt 0:
01:49]} Kf6 {[%emt 0:01:12]} 49. Ra1 {[%emt 0:03:13]} Kg7 {[%emt 0:00:41]} 50.
Rc1 {[%emt 0:01:04]} Re7 {[%emt 0:00:53]} 51. Rc3 {[%emt 0:00:39]} Kf6 {[%emt
0:01:20]} 52. Bd1 {[%emt 0:02:02]} Kg7 {[%emt 0:00:55]} 53. Ba4 {[%emt 0:00:10]
} Kf6 {[%emt 0:01:17]} 54. Nd3 {[%emt 0:00:15]} Bd7 {[%emt 0:00:34]} 55. Bd1 {
[%emt 0:01:09]} Bc8 {[%emt 0:01:23]} 56. Ne5 {[%emt 0:02:15]} Bb7 {[%emt 0:00:
50]} 57. Ba4 {[%emt 0:00:25]} Rc7 {[%emt 0:03:06]} 58. Rc2 {[%emt 0:00:34]} Kg7
{[%emt 0:00:41]} 59. Kg3 {[%emt 0:00:06]} Rc8 {[%emt 0:00:33]} 60. Bb3 {[%emt
0:01:54]} Rd8 {[%emt 0:00:46]} 61. Ba4 {[%emt 0:00:51]} Rc8 {[%emt 0:00:16]}
62. f4 {[%emt 0:00:13]} gxf4+ {[%emt 0:00:26]} 63. exf4 {[%emt 0:00:02]} Rc7 {
[%emt 0:00:48]} 64. f5 {[%emt 0:00:28]} Rc8 {[%emt 0:00:18]} 65. Kf4 {[%emt 0:
00:10]} Kf6 {[%emt 0:01:21]} 66. Rh2 {[%emt 0:00:27]} Rh8 {[%emt 0:03:02]} 67.
Ng6 {[%emt 0:01:02]} Rh7 {[%emt 0:00:12]} 68. Re2 {[%emt 0:00:13]} Rc7 {[%emt
0:04:39]} 69. Re6+ {[%emt 0:00:50]} Kg7 {[%emt 0:00:20]} 70. Bc2 {[%emt 0:02:
54]} Bc8 {[%emt 0:01:27]} 71. Re8 {[%emt 0:00:59]} c5 {[%emt 0:02:18]} 72. dxc5
{[%emt 0:01:52]} Nc6 {[%emt 0:00:14]} 73. g5 {[%emt 0:00:28]} hxg5+ {[%emt 0:
11:56]} 74. Kxg5 {[%emt 0:00:03]} Bxf5 {[%emt 0:00:29]} 75. Bxf5 {[%emt 0:00:
08]} Nxb4 {[%emt 0:00:18]} 76. Nf4 {[%emt 0:00:15]} 1-0

[Event "Lithuanian Chess League 2021"]
[Site "Various cities"]
[Date "2021.05.08"]
[Round "2.15"]
[White "Aleknavicius, Andrius"]
[Black "Greicius, Pijus"]
[Result "1/2-1/2"]
[WhiteElo "1986"]
[BlackElo "1980"]
[PlyCount "73"]
[TimeControl "90/40+30:0"]
[WhiteClock "0:00:40"]
[BlackClock "0:05:53"]

1. d4 {[%emt 0:00:02]} Nf6 {[%emt 0:00:11]} 2. Bf4 {[%emt 0:00:23]} d5 {[%emt
0:00:11]} 3. e3 {[%emt 0:00:31]} c5 {[%emt 0:00:57]} 4. c3 {[%emt 0:07:28]} Nc6
{[%emt 0:02:36]} 5. Nd2 {[%emt 0:00:30]} e6 {[%emt 0:02:37]} 6. Ngf3 {[%emt 0:
00:48]} cxd4 {[%emt 0:10:04]} 7. exd4 {[%emt 0:00:23]} Nh5 {[%emt 0:01:27]} 8.
Be3 {[%emt 0:03:08]} Bd6 {[%emt 0:07:41]} 9. Ne5 {[%emt 0:00:45]} g6 {[%emt 0:
09:05]} 10. g4 {[%emt 0:01:53]} Ng7 {[%emt 0:00:35]} 11. h4 {[%emt 0:01:48]}
Nxe5 {[%emt 0:08:43]} 12. dxe5 {[%emt 0:00:07]} Bxe5 {[%emt 0:03:48]} 13. Nf3 {
[%emt 0:08:45]} Bd6 {[%emt 0:09:11]} 14. Bh6 {[%emt 0:05:37]} O-O {[%emt 0:10:
59]} 15. h5 {[%emt 0:06:53]} e5 {[%emt 0:13:03]} 16. Ng5 {[%emt 0:40:17]} Qe7 {
[%emt 0:06:17]} 17. hxg6 {[%emt 0:06:51]} hxg6 {[%emt 0:00:27]} 18. Nh7 {[%emt
0:04:13]} Be6 {[%emt 0:02:04]} 19. Qd2 {[%emt 0:03:08]} f6 {[%emt 0:00:40]} 20.
Nxf8 {[%emt 0:03:20]} Rxf8 {[%emt 0:00:02]} 21. Bg2 {[%emt 0:01:48]} d4 {[%emt
0:00:34]} 22. O-O {[%emt 0:01:45]} dxc3 {[%emt 0:00:52]} 23. Qxc3 {[%emt 0:00:
14]} g5 {[%emt 0:00:13]} 24. Be4 {[%emt 0:00:53]} Bxg4 {[%emt 0:00:18]} 25.
Qb3+ {[%emt 0:00:28]} Be6 {[%emt 0:01:15]} 26. Bd5 {[%emt 0:00:26]} Bxd5 {
[%emt 0:00:28]} 27. Qxd5+ {[%emt 0:00:03]} Kh7 {[%emt 0:00:10]} 28. Rad1 {
[%emt 0:00:56]} Bc5 {[%emt 0:00:49]} 29. Bxg7 {[%emt 0:00:15]} Kxg7 {[%emt 0:
00:07]} 30. Qd7 {[%emt 0:00:08]} Rf7 {[%emt 0:00:19]} 31. Qxe7 {[%emt 0:01:19]}
Rxe7 {[%emt 0:00:11]} 32. Kg2 {[%emt 0:00:17]} Bd4 {[%emt 0:00:15]} 33. b3 {
[%emt 0:00:07]} a5 {[%emt 0:01:45]} 34. Rc1 {[%emt 0:00:36]} b6 {[%emt 0:00:28]
} 35. Rfd1 {[%emt 0:00:26]} Kg6 {[%emt 0:00:57]} 36. Rc6 {[%emt 0:00:22]} Kf5 {
[%emt 0:03:20]} 37. Rd3 {[%emt 0:01:06]} 1/2-1/2